Workbook

Sheet HA Acreages
D1: Herd Area Statistics
A3: FY 07 Data
B5: Herd Area | E5: Herd Management Area | H5: Acres
B6: BLM | C6: Other | D6: Total | E6: BLM | F6: Other | G6: Total | H6: Transferred | I6: Populations | L6: Total
B7: Acres | C7: Acres | D7: Acres | E7: Acres | F7: Acres | G7: Acres | H7: from BLM | I7: Horses | J7: Burros | K7: Total | L7: AML
A8: AZ | B8: =Arizona!C36 -> 2019932 | C8: =Arizona!D36 -> 1617998 | D8: =B8+C8 -> 3637930 | E8: =Arizona!E36 -> 1756086 | F8: =Arizona!F36 -> 1327777 | G8: =E8+F8 -> 3083863 | H8: 0 | I8: =Arizona!H36 -> 215 | J8: =Arizona!J36 -> 1501 | K8: =I8+J8 -> 1716 | L8: =SUM(Arizona!G36+Arizona!I36) -> 1600
A9: CA | B9: =California!C63 -> 5112778 | C9: =California!D63 -> 1851661 | D9: =B9+C9 -> 6964439 | E9: =California!E63 -> 1946590 | F9: =California!F63 -> 471855 | G9: =E9+F9 -> 2418445 | H9: 1477076 | I9: =California!I63 -> 2478 | J9: =California!K63 -> 635 | K9: =I9+J9 -> 3113 | L9: =California!H63+California!J63 -> 2199
A10: CO | B10: =Colorado!C32 -> 658119 | C10: =Colorado!D32 -> 76572 | D10: 734691 | E10: =Colorado!E32 -> 366098 | F10: =Colorado!F32 -> 38656 | G10: 404754 | H10: 0 | I10: =Colorado!H32 -> 771 | J10: 0 | K10: 771 | L10: =SUM(Colorado!G32+Colorado!I32) -> 812
A11: ID | B11: =Idaho!C34 -> 428421 | C11: =Idaho!D34 -> 49235 | D11: 477656 | E11: =Idaho!E34 -> 377907 | F11: =Idaho!F34 -> 40287 | G11: 418194 | H11: 0 | I11: =Idaho!H34 -> 803 | J11: 0 | K11: 803 | L11: =SUM(Idaho!G34+Idaho!I34) -> 617
A12: MT | B12: =Montana!C31 -> 104361 | C12: =Montana!D31 -> 119242 | D12: 223603 | E12: =Montana!E31 -> 28282 | F12: =Montana!F31 -> 8865 | G12: 37147 | H12: 0 | I12: =Montana!H31 -> 154 | J12: 0 | K12: 154 | L12: =SUM(Montana!G31+Montana!I31) -> 105
A13: NV | B13: =Nevada!#REF! ->  | C13: =Nevada!#REF! ->  | E13: =Nevada!#REF! ->  | F13: =Nevada!#REF! ->  | G13: =E13+F13 ->  | H13: 444112 | I13: =Nevada!#REF! ->  | J13: =Nevada!#REF! ->  | L13: =SUM(Nevada!#REF!+Nevada!#REF!) -> 
A14: NM | B14: =New_Mexico!C29 -> 88653 | C14: =New_Mexico!D29 -> 37874 | D14: 126527 | E14: =New_Mexico!E29 -> 24505 | F14: =New_Mexico!F29 -> 4107 | G14: 28612 | H14: 0 | I14: =New_Mexico!H29 -> 89 | J14: 0 | K14: 89 | L14: =SUM(New_Mexico!G29+New_Mexico!I29) -> 83
A15: OR | B15: =Oregon!C62 -> 3559935 | C15: =Oregon!D62 -> 785250 | D15: 4345185 | E15: =Oregon!E62 -> 2703409 | F15: =Oregon!F62 -> 259726 | G15: 2963135 | H15: 0 | I15: =Oregon!H62 -> 2092 | J15: =Oregon!J62 -> 15 | K15: 2107 | L15: =Oregon!G62+Oregon!I62 -> 2715
A16: UT | B16: =Utah!C57 -> 3236178 | C16: =Utah!D57 -> 689176 | D16: 3925354 | E16: =Utah!E57 -> 2462726 | F16: =Utah!F57 -> 374614 | G16: 2837340 | H16: 79120 | I16: =Utah!I57 -> 2543 | J16: =Utah!K57 -> 195 | K16: 2738 | L16: =SUM(Utah!H57+Utah!J57) -> 2151
A17: WY | B17: =Wyoming!C68 -> 7297778 | C17: =Wyoming!D68 -> 3030010 | D17: 10327788 | E17: =Wyoming!E68 -> 3638330 | F17: =Wyoming!F68 -> 1137121 | G17: 4775451 | H17: 0 | I17: =Wyoming!H68 -> 4077 | J17: 0 | K17: 4077 | L17: =SUM(Wyoming!G68+Wyoming!I68) -> 3725
A18: TOTAL | B18: =SUM(B8:B17) ->  | C18: =SUM(C8:C17) ->  | H18: =SUM(H8:H17) -> 2000308 | L18: =SUM(L8:L17) -> 
A20: Herd Management Areas and Herd Areas have been placed in separate tables by state.
A21: Herd Area statistics are a reflection of each state's current estimated population information as of February 28, 2007.
A22: Populations do not reflect any changes after February, 2007. (i.e. foal crops or gathers).
A23: BLM policy is to establish AML as a range with upper and lower levels, the numbers displayed represents the upper limit.
A24: Gather Mo/Year is based on 10 or more animals removed during the fiscal year.
A25: Acres have been calculated using current digitized (GIS) maps.
A26: Year Reach AML column displays the last time AML was achieved on the HMA.
A27: Acreage transferred from BLM to another agency is not deducted from the HA acreage.

Sheet Arizona
A1: ARIZONA WILD HORSE AND BURRO AREAS ADMINISTRATED BY THE BUREAU OF LAND MANAGEMENT | H1: FY 07
A3: HERD MANAGEMENT AREAS (HMAs) - AREAS MANAGED FOR WILD HORSES AND BURROS
P4: YEAR AML
C5: HERD | D5: AREA | E5: HERD MANAGEMENT AREA | K5: Last | L5: Year | M5: RANGE OF AML | P5: WAS
B6: Herd | C6: BLM | D6: Other | E6: BLM | F6: Other | G6: Horse | H6: Estimated | I6: Burro | J6: Estimated | K6: Gather | L6: Reach | M6: HIGH | N6: MID | O6: LOW | P6: ESTABLISHED
A7: HERD AREA NAME | B7: Code | C7: Acres | D7: Acres | E7: Acres | F7: Acres | G7: AML (1,2) | H7: Horse Pop | I7: AML (1,2) | J7: Burro Pop | K7: Mo/Year | L7: AML
A8: ALAMO (3) | B8: AZ0005 | C8: 288094 | D8: 52950 | E8: 288094 | F8: 52950 | G8: 0 | H8: 0 | I8: 200 | J8: 151 | K8: 2003-06-01 | L8: 2003 | N8: 200 | P8: 1983
A9: BIG SANDY (3) | B9: AZ0004 | C9: 192155 | D9: 51750 | E9: 192155 | F9: 51750 | G9: 0 | H9: 0 | I9: 139 | J9: 137 | K9: 2003-06-01 | L9: 2003 | N9: 139 | P9: 1981
A10: BLACK MOUNTAIN | B10: AZ0003 | C10: 574833 | D10: 519476 | E10: 566402 | F10: 440379 | G10: 0 | H10: 0 | I10: 478 | J10: 434 | K10: 2003-12-01 | L10: 2001 | N10: 478 | P10: 1978
A11: CERBAT MOUNTAINS | B11: AZ0002 | C11: 60448 | D11: 22595 | E11: 60448 | F11: 22595 | G11: 90 | H11: 60 | I11: 0 | J11: 0 | K11: 1995-03-01 | N11: 0 | P11: 2005
A12: CIBOLA-TRIGO | B12: AZ0011 | C12: 281388 | D12: 746513 | E12: 279595 | F12: 639343 | G12: 150 | H12: 135 | I12: 165 | J12: 180 | K12: 2003-12-01 | L12: 2002 | N12: 285 | P12: 1975
A13: HAVASU (3) | B13: AZ0010 | C13: 308625 | D13: 101688 | E13: 308573 | F13: 78119 | G13: 0 | H13: 0 | I13: 170 | J13: 209 | K13: 2002-12-01 | L13: 2005 | N13: 170 | P13: 1975
A14: LAKE PLEASANT | B14: AZ0006 | C14: 60819 | D14: 42641 | E14: 60819 | F14: 42641 | G14: 0 | H14: 0 | I14: 208 | J14: 208 | K14: 2002-07-01 | L14: 2001 | N14: 208 | P14: 1989
A15: TOTAL | C15: =SUM(C8:C14) -> 1766362 | D15: 1537613 | E15: 1756086 | F15: 1327777 | G15: 240 | H15: 195 | I15: 1360 | J15: 1319 | N15: =SUM(N8:N14) -> 1480
A17: 1. Appropriate Management Levels, indicates estimated AML.
A18: 2. AML is reported as the maxium number of animals sustainable on a yearlong basis.
A19: 3. Three Rivers Complex - AML 509 Alamo, Big Sandy, Havasu
A21: HERD AREAS (HAs) - AREAS NOT MANAGED FOR WILD HORSES AND BURROS
C23: HERD | D23: AREA | G23: Last
B24: Herd | C24: BLM | D24: Other | E24: Estimated | F24: Estimated | G24: Gather
A25: HERD AREA NAME | B25: Code | C25: Acres | D25: Acres | E25: Horse Pop | F25: Burro Pop | G25: Mo/Year
A26: HARQUAHALA | B26: AZ0008 | C26: 117466 | D26: 8788 | E26: 0 | F26: 47 | G26: 2002-06-01
A27: LITTLE HARQUAHALA MOUNTAINS | B27: AZ0009 | C27: 51945 | D27: 13946 | E27: 0 | F27: 0 | G27: 1997-09-01
A28: PAINTED ROCKS | B28: AZ0007 | C28: 31286 | D28: 7452 | E28: 0 | F28: 25 | G28: 1999-09-01
A29: TASSI-GOLD BUTTE | B29: AZ0001 | C29: 52873 | D29: 50199 | E29: 0 | F29: 10 | G29: 2002-01-01
A30: OUTSIDE OF HERD AREAS | B30: AZ000Z | E30: 20 | F30: 100 | G30: 2002-03-01
A31: TOTAL | C31: =SUM(C26:C30) -> 253570 | D31: =SUM(D26:D30) -> 80385 | E31: =SUM(E26:E30) -> 20 | F31: =SUM(F26:F30) -> 182
C33: HERD | D33: AREA | E33: HERD MANAGEMENT AREA
C34: BLM | D34: Other | E34: BLM | F34: Other | G34: Horse | H34: Estimated | I34: Burro | J34: Estimated
C35: Acres | D35: Acres | E35: Acres | F35: Acres | G35: AML | H35: Horse Pop | I35: AML | J35: Burro Pop
A36: ARIZONA SUMMARY | C36: =SUM(C15+C31) -> 2019932 | D36: =SUM(D15+D31) -> 1617998 | E36: =SUM(E15) -> 1756086 | F36: =SUM(F15) -> 1327777 | G36: =SUM(G15) -> 240 | H36: =SUM(H15+E31) -> 215 | I36: =SUM(I15) -> 1360 | J36: =SUM(J15+F31) -> 1501
A38: ARIZONA SUMMARY
A39: # of HMAs where WH&B AML is Established: | D39: 6
A40: # of HMAs where WH&B AML is Estimated: | D40: 1
A41: # of HMAs at AML: | D41: 6
A42: # of HMAs with Zero AML: | D42: 0
A43: * Only BLM acres displayed/Managed by USFS. | D43: 0
A44: ** Only BLM acres displayed/Managed by BLM. | D44: 0
A45: *** Only BLM acres displayed/Not managed. | D45: 0

Sheet California
A1: CALIFORNIA WILD HORSE AND BURRO AREAS ADMINISTRATED BY THE BUREAU OF LAND MANAGEMENT | I1: FY 07
A3: HERD MANAGEMENT AREAS (HMAs) - AREAS MANAGED FOR WILD HORSES AND BURROS
Q4: YEAR AML
C5: HERD | D5: AREA | E5: HERD MANAGEMENT AREA | G5: Acres | L5: Last | M5: Year | N5: RANGE OF AML | Q5: WAS
B6: Herd | C6: BLM | D6: Other | E6: BLM | F6: Other | G6: Transferred | H6: Horse | I6: Estimated | J6: Burro | K6: Estimated | L6: Gather | M6: Reach | N6: HIGH | O6: MID | P6: LOW | Q6: ESTABLISHED
A7: HERD AREA NAME | B7: Code | C7: Acres | D7: Acres | E7: Acres | F7: Acres | G7: from BLM | H7: AML (1,2) | I7: Horse Pop | J7: AML (1,2) | K7: Burro Pop | L7: Mo/Year | M7: AML
A8: BITNER | B8: CA0267 | C8: 47526 | D8: 2907 | E8: 47526 | F8: 2907 | G8: 0 | H8: 25 | I8: 85 | J8: 0 | K8: 0 | L8: 1993-10-01 | M8: 2003 | N8: 25 | O8: 20 | P8: 15 | Q8: 1993
A9: BUCKHORN | B9: CA0262 | C9: 67234 | D9: 8892 | E9: 67234 | F9: 8892 | G9: 0 | H9: 85 | I9: 287 | J9: 0 | K9: 0 | L9: 2003-11-01 | M9: 2004 | N9: 85 | O9: 72 | P9: 59 | Q9: 1995
A10: CARTER RESERVOIR | B10: CA0269 | C10: 21062 | D10: 1872 | E10: 21062 | F10: 1872 | G10: 0 | H10: 35 | I10: 108 | J10: 0 | K10: 0 | L10: 2003-08-01 | M10: 2004 | N10: 35 | O10: 30 | P10: 25 | Q10: 2003
A11: CENTENNIAL | B11: CA0654 | C11: 358574 | D11: 671783 | E11: 71353 | F11: 247147 | G11: 6987 | H11: 168 | I11: 168 | J11: 0 | K11: 45 | L11: 2006-12-01 | M11: 2007 | N11: 168 | O11: 134 | P11: 100 | Q11: 1980
A12: CHEMEHUEVI | B12: CA0698 | C12: 377671 | D12: 31522 | E12: 105253 | F12: 8228 | G12: 0 | H12: 0 | I12: 0 | J12: 108 | K12: 174 | L12: 2003-05-01 | M12: 2004 | N12: 108 | O12: 87 | P12: 65 | Q12: 2002
A13: CHICAGO VALLEY | B13: CA0681 | C13: 311718 | D13: 21310 | E13: 258409 | F13: 19189 | G13: 17591 | H13: 12 | I13: 6 | J13: 0 | K13: 0 | L13: 2005-09-01 | M13: 2005 | N13: 12 | O13: 6 | P13: 4 | Q13: 2002
A14: CHOCOLATE-MULE MOUNTAINS | B14: CA0671 | C14: 340947 | D14: 254909 | E14: 150757 | F14: 8404 | G14: 0 | H14: 0 | I14: 0 | J14: 121 | K14: 104 | L14: 2006-03-01 | M14: 2006 | N14: 121 | O14: 94 | P14: 70 | Q14: 2002
A15: COPPERSMITH | B15: CA0261 | C15: 60114 | D15: 13216 | E15: 60114 | F15: 13216 | G15: 0 | H15: 75 | I15: 78 | J15: 0 | K15: 0 | L15: 2005-07-01 | M15: 2005 | N15: 75 | O15: 63 | P15: 50 | Q15: 1995
A16: FORT SAGE | B16: CA0241 | C16: 13649 | D16: 2257 | E16: 13649 | F16: 2257 | G16: 0 | H16: 65 | I16: 50 | J16: 0 | K16: 0 | L16: 1988-09-01 | M16: 2001 | N16: 65 | P16: 55 | Q16: 1983
A17: FOX HOG | B17: CA0263 | C17: 92223 | D17: 4577 | E17: 92223 | F17: 4577 | G17: 0 | H17: 220 | I17: 144 | J17: 0 | K17: 0 | L17: 2005-08-01 | M17: 2005 | N17: 220 | O17: 170 | P17: 120 | Q17: 1999
A18: HIGH ROCK | B18: CA0264 | C18: 138510 | D18: 527 | E18: 94606 | F18: 94 | G18: 0 | H18: 120 | I18: 124 | J18: 0 | K18: 0 | L18: 2006-09-01 | M18: 2006 | N18: 120 | O18: 99 | P18: 78 | Q18: 2001
A19: LEE FLAT | B19: CA0652 | C19: 133360 | D19: 2149 | E19: 71940 | F19: 1308 | G19: 47161 | H19: 0 | I19: 0 | J19: 15 | K19: 0 | L19: 2001-10-01 | M19: 2006 | N19: 15 | O19: 13 | P19: 10 | Q19: 1994
A20: MASSACRE LAKES | B20: CA0268 | C20: 63077 | D20: 2581 | E20: 35872 | F20: 1478 | G20: 0 | H20: 20 | I20: 131 | J20: 0 | K20: 0 | L20: 1988-10-01 | M20: 1988 | N20: 20 | O20: 15 | P20: 10 | Q20: 2005
A21: NEW RAVENDALE | B21: CA0243 | C21: 23451 | D21: 8731 | E21: 9348 | F21: 5548 | G21: 0 | H21: 25 | I21: 49 | J21: 0 | K21: 0 | L21: 2004-07-01 | M21: 2004 | N21: 25 | O21: 15 | P21: 10 | Q21: 1985
A22: NUT MOUNTAIN | B22: CA0266 | C22: 38327 | D22: 1793 | E22: 38327 | F22: 1793 | G22: 0 | H22: 55 | I22: 179 | J22: 0 | K22: 0 | L22: 2000-10-01 | M22: 2001 | N22: 55 | O22: 43 | P22: 30 | Q22: 1993
A23: PALM CANYON | B23: CA0662 | C23: 2758 | D23: 6773 | E23: 2758 | F23: 6773 | G23: 0 | H23: 6 | I23: 0 | J23: 0 | K23: 0 | L23: 2002-08-01 | M23: 2002 | N23: 6 | O23: 4 | P23: 4 | Q23: 1980
A24: PIPER MOUNTAIN | B24: CA0656 | C24: 95937 | D24: 8397 | E24: 87876 | F24: 8312 | G24: 7742 | H24: 17 | I24: 0 | J24: 82 | K24: 0 | L24: 1994-04-01 | N24: 17H 82B | O24: 14H 67B | P24: 11H 50B | Q24: 1980
A25: RED ROCK LAKES | B25: CA0251 | C25: 13464 | D25: 5146 | E25: 13464 | F25: 5146 | G25: 0 | H25: 25 | I25: 89 | J25: 0 | K25: 0 | L25: 2003-09-01 | M25: 2004 | Q25: 1985
A26: TWIN PEAKS | B26: CA0242 | C26: 636231 | D26: 121841 | E26: 636231 | F26: 121841 | G26: 0 | H26: 758 | I26: 779 | J26: 116 | K26: 86 | L26: 2006-08-01 | M26: 2006 | N26: 758 | O26: 603 | P26: 448 | Q26: 2001
A27: WALL CANYON | B27: CA0265 | C27: 38909 | D27: 2243 | E27: 38909 | F27: 2243 | G27: 0 | H27: 25 | I27: 82 | J27: 0 | K27: 0 | L27: 2001-11-01 | M27: 2004 | N27: 25 | O27: 20 | P27: 15 | Q27: 1993
A28: WAUCOBA-HUNTER MOUNTAIN** | B28: CA0651 | C28: 464307 | D28: 5932 | E28: 22042 | F28: 537 | G28: 424868 | H28: 0 | I28: 0 | J28: 11 | K28: 13 | L28: 2001-10-01 | M28: 2004 | N28: 11 | O28: 9 | P28: 7 | Q28: 1994
A29: ROUND MOUNTAIN (Devils Garden Plateau)* | B29: CA0252 | C29: 7637 | D29: 93 | E29: 7637 | F29: 93 | G29: 0 | H29: 10 | I29: 12 | J29: 0 | K29: 0 | L29: 2004-08-01 | M29: 2005 | N29: 10
A30: TOTAL | C30: =SUM(C8:C29) -> 3346686 | D30: =SUM(D8:D29) -> 1179451 | E30: 1946590 | F30: 471855 | G30: 504349 | H30: 1746 | I30: 2371 | J30: 453 | K30: 422 | N30: 2058 | O30: 1578 | P30: 1236
A32: 1. Appropriate Management Levels, indicates estimated AML.
A33: 2. AML is reported as the maxium number of animals sustainable on a yearlong basis.
A35: HERD AREAS (HAs) - AREAS NOT MANAGED FOR WILD HORSES AND BURROS
C37: HERD | D37: AREA | E37: Acres | H37: Last
B38: Herd | C38: BLM | D38: Other | E38: Transferred | F38: Estimated | G38: Estimated | H38: Gather
A39: HERD AREA NAME | B39: Code | C39: Acres | D39: Acres | E39: from BLM | F39: Horse Pop | G39: Burro Pop | H39: Mo/Year
A40: CIMA DOME | B40: CA0695 | C40: 90429 | D40: 2772 | E40: 93201 | F40: 0 | G40: 0 | H40: 1992-12-01
A41: CLARK MOUNTAIN | B41: CA0691 | C41: 217231 | D41: 16139 | E41: 37376 | F41: 0 | G41: 45 | H41: 2007-01-01
A42: COYOTE CANYON | B42: CA0663 | C42: 285 | D42: 21135 | E42: 0 | F42: 0 | G42: 0
A43: DEAD MOUNTAIN | B43: CA0697 | C43: 38580 | D43: 4178 | E43: 0 | F43: 0 | G43: 29 | H43: 1982-04-01
A44: GRANITE-PROVIDENCE MOUNTAINS | B44: CA0693 | C44: 174209 | D44: 18533 | E44: 186481 | F44: 0 | G44: 0 | H44: 1999-08-01
A45: KRAMER | B45: CA0682 | C45: 5646 | D45: 8378 | E45: 0 | F45: 0 | G45: 0 | H45: 1990-01-01
A46: LAVA BEDS | B46: CA0692 | C46: 170681 | D46: 8564 | E46: 177600 | F46: 0 | G46: 0 | H46: 1997-05-01
A47: MORONGO | B47: CA0661 | C47: 27438 | D47: 11098 | E47: 0 | F47: 0 | G47: 0 | H47: 1988-02-01
A48: NEW YEARS LAKE (in CA0269) | B48: CA0260 | C48: 256352 | D48: 59917 | E48: 0 | F48: 0 | G48: 0
A49: PANAMINT | B49: CA0653 | C49: 360407 | D49: 54292 | E49: 201326 | F49: 0 | G49: 30 | H49: 2004-03-01
A50: PICACHO (within CA0671) | B50: CA0672 | C50: 0 | D50: 0 | E50: 0 | F50: 0 | G50: 0 | H50: 2002-11-01
A51: PIUTE MOUNTAIN | B51: CA0696 | C51: 37335 | D51: 2445 | E51: 0 | F51: 0 | G51: 29 | H51: 1987-10-01
A52: SAND SPRING-LAST CHANCE | B52: CA0657 | C52: 233152 | D52: 7428 | E52: 198812 | F52: 0 | G52: 0 | H52: 1995-05-01
A53: SHAFFER MOUNTAIN | B53: CA0240 | C53: 29358 | D53: 7510 | E53: 0 | F53: 0 | G53: 0
A54: SLATE RANGE | B54: CA0655 | C54: 75713 | D54: 437249 | E54: 21387 | F54: 0 | G54: 30 | H54: 2007-01-01
A55: TULEDAD (in CA0261 & CA0262) | B55: CA0270 | C55: 2933 | D55: 2371 | E55: 0 | F55: 0 | G55: 0
A56: WOODS-HACKBERRY | B56: CA0694 | C56: 46343 | D56: 10201 | E56: 56544 | F56: 0 | G56: 0 | H56: 1992-12-01
A57: OUTSIDE OF HERD AREAS | B57: CA000Z | E57: 0 | F57: 107 | G57: 50 | H57: 2007-01-01
A58: TOTAL | C58: =SUM(C40:C57) -> 1766092 | D58: =SUM(D40:D57) -> 672210 | E58: =SUM(E40:E57) -> 972727 | F58: =SUM(F40:F57) -> 107 | G58: =SUM(G40:G57) -> 213
C60: HERD | D60: AREA | E60: HERD MANAGEMENT AREA | G60: Acres
C61: BLM | D61: Other | E61: BLM | F61: Other | G61: Transferred | H61: Horse | I61: Estimated | J61: Burro | K61: Estimated
C62: Acres | D62: Acres | E62: Acres | F62: Acres | G62: from BLM | H62: AML | I62: Horse Pop | J62: AML | K62: Burro Pop
A63: CALIFORNIA SUMMARY | C63: =SUM(C30+C58) -> 5112778 | D63: =SUM(D30+D58) -> 1851661 | E63: =SUM(E30) -> 1946590 | F63: =SUM(F30) -> 471855 | G63: =SUM(G30+E58) -> 1477076 | H63: =SUM(H30) -> 1746 | I63: =SUM(I30+F57) -> 2478 | J63: =SUM(J30) -> 453 | K63: =SUM(K30+G58) -> 635
A65: CALIFORNIA SUMMARY
A66: # of HMAs where WH&B AML is Established: | D66: 22
A67: # of HMAs where WH&B AML is Estimated: | D67: 0
A68: # of HMAs at AML: | D68: 8
A69: # of HMAs with Zero AML: | D69: 0
A70: * Only BLM acres displayed/Managed by USFS. | D70: 1
A71: ** Only BLM acres displayed/Managed by BLM. | D71: 2
A72: *** Only BLM acres displayed/Not managed. | D72: 0

Sheet Colorado
A1: COLORADO WILD HORSE AND BURRO AREAS ADMINISTRATED BY THE BUREAU OF LAND MANAGEMENT | J1: FY 07
A3: HERD MANAGEMENT AREAS (HMAs) - AREAS MANAGED FOR WILD HORSES AND BURROS
P4: YEAR AML
C5: HERD | D5: AREA | E5: HERD MANAGEMENT AREA | K5: Last | L5: Year | M5: RANGE OF AML | P5: WAS
B6: Herd | C6: BLM | D6: Other | E6: BLM | F6: Other | G6: Horse | H6: Estimated | I6: Burro | J6: Estimated | K6: Gather | L6: Reach | M6: HIGH | N6: MID | O6: LOW | P6: ESTABLISHED
A7: HERD AREA NAME | B7: Code | C7: Acres | D7: Acres | E7: Acres | F7: Acres | G7: AML (1,2) | H7: Horse Pop | I7: AML (1,2) | J7: Burro Pop | K7: Mo/Year | L7: AML
A8: LITTLE BOOK CLIFFS WILD HORSE RANGE | B8: CO0766 | C8: 51086 | D8: 1601 | E8: 35205 | F8: 925 | G8: 150 | H8: 141 | I8: 0 | J8: 0 | K8: 2004-10-04 | L8: 2005 | M8: 150 | N8: 120 | O8: 90 | P8: 2002
A9: PICEANCE-EAST DOUGLAS CREEK | B9: CO0161 | C9: 158281 | D9: 31741 | E9: 158281 | F9: 31741 | G9: 235 | H9: 206 | I9: 0 | J9: 0 | K9: 2006-09-01 | L9: 2006 | M9: 235 | N9: 185 | O9: 135 | P9: 2002
A10: SAND WASH BASIN | B10: CO0143 | C10: 151548 | D10: 5092 | E10: 151548 | F10: 5092 | G10: 362 | H10: 202 | I10: 0 | J10: 0 | K10: 2005-09-01 | L10: 2005 | M10: 362 | N10: 265 | O10: 163 | P10: 2001
A11: SPRING CREEK BASIN | B11: CO0384 | C11: 43101 | D11: 11500 | E11: 21064 | F11: 898 | G11: 65 | H11: 94 | I11: 0 | J11: 0 | K11: 2005-08-01 | L11: 2005 | M11: 65 | N11: 50 | O11: 35 | P11: 1995
A12: TOTAL | C12: =SUM(C8:C11) -> 404016 | D12: 49934 | E12: 366098 | F12: 38656 | G12: =SUM(G8:G11) -> 812 | H12: 643 | I12: 0 | J12: 0 | M12: =SUM(M8:M11) -> 812 | N12: =SUM(N8:N11) -> 620 | O12: =SUM(O8:O11) -> 423
A14: 1. Appropriate Management Levels, indicates estimated AML.
A15: 2. AML is reported as the maxium number of animals sustainable on a yearlong basis.
A17: HERD AREAS (HAs) - AREAS NOT MANAGED FOR WILD HORSES AND BURROS
C19: HERD | D19: AREA | G19: Last
B20: Herd | C20: BLM | D20: Other | E20: Estimated | F20: Estimated | G20: Gather
A21: HERD AREA NAME | B21: Code | C21: Acres | D21: Acres | E21: Horse Pop | F21: Burro Pop | G21: Mo/Year
A22: DOUGLAS MOUNTAIN | B22: CO0144 | C22: 65829 | D22: 10892 | E22: 0 | F22: 0
A23: NATURITA RIDGE | B23: CO0345 | C23: 53803 | D23: 9490 | E23: 0 | F23: 0
A24: NORTH PICEANCE (in CO0161) | B24: CO0163 | C24: 76959 | D24: 12396 | E24: 12 | F24: 0 | G24: 2006-09-01
A25: WEST DOUGLAS CREEK | B25: CO0162 | C25: 123341 | D25: 4752 | E25: 101 | F25: 0 | G25: 2006-10-01
A26: OUTSIDE OF HERD AREAS | B26: CO000Z | E26: 15 | F26: 0 | G26: 2006-09-01
A27: TOTAL | C27: =SUM(C23:C26) -> 254103 | D27: =SUM(D23:D26) -> 26638 | E27: =SUM(E23:E26) -> 128 | F27: =SUM(F23:F26) -> 0
C29: HERD | D29: AREA | E29: HERD MANAGEMENT AREA
C30: BLM | D30: Other | E30: BLM | F30: Other | G30: Horse | H30: Estimated | I30: Burro | J30: Estimated
C31: Acres | D31: Acres | E31: Acres | F31: Acres | G31: AML | H31: Horse Pop | I31: AML | J31: Burro Pop
A32: COLORADO SUMMARY | C32: =SUM(C12+C27) -> 658119 | D32: =SUM(D12+D27) -> 76572 | E32: =SUM(E12) -> 366098 | F32: =SUM(F12) -> 38656 | G32: =SUM(G12) -> 812 | H32: =SUM(H12+E27) -> 771 | I32: =SUM(I12) -> 0 | J32: =SUM(J12+F27) -> 0
A34: COLORADO SUMMARY
A35: # of HMAs where WH&B AML is Established: | C35: 4
A36: # of HMAs where WH&B AML is Estimated: | C36: 0
A37: # of HMAs at AML: | C37: 3
A38: # of HMAs with Zero AML: | C38: 0
A39: * Only BLM acres displayed/Managed by USFS. | C39: 0
A40: ** Only BLM acres displayed/Managed by BLM. | C40: 0
A41: *** Only BLM acres displayed/Not managed. | C41: 0

Sheet Idaho
A1: IDAHO WILD HORSE AND BURRO AREAS ADMINISTRATED BY THE BUREAU OF LAND MANAGEMENT | H1: FY 07
A3: HERD MANAGEMENT AREAS (HMAs) - AREAS MANAGED FOR WILD HORSES AND BURROS
P4: YEAR AML
C5: HERD | D5: AREA | E5: HERD MANAGEMENT AREA | K5: Last | L5: Year | M5: RANGE OF AML | P5: WAS
B6: Herd | C6: BLM | D6: Other | E6: BLM | F6: Other | G6: Horse | H6: Estimated | I6: Burro | J6: Estimated | K6: Gather | L6: Reach | M6: HIGH | N6: MID | O6: LOW | P6: ESTABLISHED
A7: HERD AREA NAME | B7: Code | C7: Acres | D7: Acres | E7: Acres | F7: Acres | G7: AML (1,2) | H7: Horse Pop | I7: AML (1,2) | J7: Burro Pop | K7: Mo/Year | L7: AML
A8: BLACK MOUNTAIN | B8: ID0006 | C8: 46636 | D8: 4717 | E8: 46546 | F8: 4357 | G8: 60 | H8: 73 | I8: 0 | J8: 0 | K8: 2005-08-01 | L8: 2005 | M8: 60 | N8: 45 | O8: 30 | P8: 1999
A9: CHALLIS | B9: ID0005 | C9: 156563 | D9: 11288 | E9: 156563 | F9: 11288 | G9: 253 | H9: 265 | I9: 0 | J9: 0 | K9: 2004-08-01 | L9: 2004 | M9: 253 | N9: 219 | O9: 185 | P9: 1999
A10: FOUR MILE | B10: ID0002 | C10: 21002 | D10: 4803 | E10: 15995 | F10: 2040 | G10: 60 | H10: 71 | I10: 0 | J10: 0 | K10: 2003-11-01 | L10: 2004 | M10: 60 | N10: 49 | O10: 37 | P10: 2001
A11: HARD TRIGGER | B11: ID0007 | C11: 62159 | D11: 7722 | E11: 60118 | F11: 7697 | G11: 130 | H11: 208 | I11: 0 | J11: 0 | K11: 2003-11-01 | L11: 2004 | M11: 130 | N11: 98 | O11: 66 | P11: 1999
A12: SAND BASIN | B12: ID0004 | C12: 9448 | D12: 2267 | E12: 9448 | F12: 2267 | G12: 64 | H12: 60 | I12: 0 | J12: 0 | K12: 2003-10-01 | L12: 2004 | M12: 64 | N12: 49 | O12: 33 | P12: 1999
A13: SAYLOR CREEK | B13: ID0003 | C13: 89237 | D13: 12638 | E13: 89237 | F13: 12638 | G13: 50 | H13: 126 | I13: 0 | J13: 0 | K13: 2005-08-01 | L13: 2005
A14: TOTAL | C14: =SUM(C8:C13) -> 385045 | D14: 43435 | E14: 377907 | F14: 40287 | G14: 617 | H14: 803 | I14: 0 | J14: 0 | M14: =SUM(M8:M13) -> 567 | N14: =SUM(N8:N13) -> 460 | O14: =SUM(O8:O13) -> 351
A16: 1. Appropriate Management Levels, indicates estimated AML.
A17: 2. AML is reported as the maxium number of animals sustainable on a yearlong basis.
A19: HERD AREAS (HAs) - AREAS NOT MANAGED FOR WILD HORSES AND BURROS
C21: HERD | D21: AREA | G21: Last
B22: Herd | C22: BLM | D22: Other | E22: Estimated | F22: Estimated | G22: Gather
A23: HERD AREA NAME | B23: Code | C23: Acres | D23: Acres | E23: Horse Pop | F23: Burro Pop | G23: Mo/Year
A24: MORGAN CREEK | B24: ID0009 | C24: 21230 | D24: 2816 | E24: 0 | F24: 0
A25: SHEEP MOUNTAIN | B25: ID0008 | C25: 13899 | D25: 893 | E25: 0 | F25: 0
A26: WEST CRANE CREEK | B26: ID0001 | C26: 8247 | D26: 2091 | E26: 0 | F26: 0 | G26: 1989-09-01
A27: OUTSIDE OF HERD AREAS | B27: ID000Z | E27: 0 | F27: 0
A28: DIAMOND (All claimed-not mapped) | B28: ID0010
A29: TOTAL | C29: =SUM(C24:C28) -> 43376 | D29: =SUM(D24:D28) -> 5800 | E29: =SUM(E24:E28) -> 0 | F29: =SUM(F24:F28) -> 0
C31: HERD | D31: AREA | E31: HERD MANAGEMENT AREA
C32: BLM | D32: Other | E32: BLM | F32: Other | G32: Horse | H32: Estimated | I32: Burro | J32: Estimated
C33: Acres | D33: Acres | E33: Acres | F33: Acres | G33: AML | H33: Horse Pop | I33: AML | J33: Burro Pop
A34: IDAHO SUMMARY | C34: =SUM(C14+C29) -> 428421 | D34: =SUM(D14+D29) -> 49235 | E34: =SUM(E14) -> 377907 | F34: =SUM(F14) -> 40287 | G34: =SUM(G14) -> 617 | H34: =SUM(H14+E29) -> 803 | I34: =SUM(I11) -> 0 | J34: =SUM(J14+F29) -> 0
A36: IDAHO SUMMARY
A37: # of HMAs where WH&B AML is Established: | C37: 6
A38: # of HMAs where WH&B AML is Estimated: | C38: 0
A39: # of HMAs at AML: | C39: 1
A40: # of HMAs with Zero AML: | C40: 0
A41: * Only BLM acres displayed/Managed by USFS. | C41: 0
A42: ** Only BLM acres displayed/Managed by BLM. | C42: 0
A43: *** Only BLM acres displayed/Not managed. | C43: 0

Sheet Montana
A1: MONTANA WILD HORSE AND BURRO AREAS ADMINISTRATED BY THE BUREAU OF LAND MANAGEMENT | H1: FY 07
A3: HERD MANAGEMENT AREAS (HMAs) - AREAS MANAGED FOR WILD HORSES AND BURROS
P4: YEAR AML
C5: HERD | D5: AREA | E5: HERD MANAGEMENT AREA | K5: Last | L5: Year | M5: RANGE OF AML | P5: WAS
B6: Herd | C6: BLM | D6: Other | E6: BLM | F6: Other | G6: Horse | H6: Estimated | I6: Burro | J6: Estimated | K6: Gather | L6: Reach | M6: HIGH | N6: MID | O6: LOW | P6: ESTABLISHED
A7: HERD AREA NAME | B7: Code | C7: Acres | D7: Acres | E7: Acres | F7: Acres | G7: AML (1,2) | H7: Horse Pop | I7: AML (1,2) | J7: Burro Pop | K7: Mo/Year | L7: AML
A8: PRYOR MOUNTAIN WILD HORSE RANGE** | B8: MT0251 | C8: 28282 | D8: 8865 | E8: 28282 | F8: 8865 | G8: 105 | H8: 154 | I8: 0 | J8: 0 | K8: 2003-09-01 | L8: 1997 | M8: 105 | N8: 95 | O8: 85 | P8: 1997
A9: TOTAL | C9: =SUM(C8) -> 28282 | D9: 8865 | E9: 28282 | F9: 8865 | G9: 105 | H9: 154 | I9: 0 | J9: 0 | M9: =SUM(M8) -> 105 | N9: =SUM(N8) -> 95 | O9: =SUM(O8) -> 85
A11: 1. Appropriate Management Levels, indicates estimated AML.
A12: 2. AML is reported as the maxium number of animals sustainable on a yearlong basis. MT does not include foals in their count.
A14: HERD AREAS (HAs) - AREAS NOT MANAGED FOR WILD HORSES AND BURROS
C16: HERD | D16: AREA | G16: Last
B17: Herd | C17: BLM | D17: Other | E17: Estimated | F17: Estimated | G17: Gather
A18: HERD AREA NAME | B18: Code | C18: Acres | D18: Acres | E18: Horse Pop | F18: Burro Pop | G18: Mo/Year
A19: BARTON GULCH | B19: MT0253 | C19: 8087 | D19: 10396 | E19: 0 | F19: 0
A20: DEVILS FENCE | B20: MT0254 | C20: 16414 | D20: 52050 | E20: 0 | F20: 0
A21: ERVIN RIDGE | B21: MT0252 | C21: 6587 | D21: 5175 | E21: 0 | F21: 0
A22: GARDEN CREEK | B22: MT0255 | C22: 13351 | D22: 12900 | E22: 0 | F22: 0
A23: ROCKY HILLS | B23: MT0257 | C23: 25552 | D23: 13815 | E23: 0 | F23: 0
A24: SWEETWATER | B24: MT0256 | C24: 6088 | D24: 16041 | E24: 0 | F24: 0
A25: OUTSIDE OF HERD AREAS | B25: MT000Z | E25: 0 | F25: 0 | G25: 2003-09-01
A26: TOTAL | C26: =SUM(C19:C24) -> 76079 | D26: =SUM(D19:D24) -> 110377 | E26: =SUM(E19:E25) -> 0 | F26: =SUM(F19:F25) -> 0
C28: HERD | D28: AREA | E28: HERD MANAGEMENT AREA
C29: BLM | D29: Other | E29: BLM | F29: Other | G29: Horse | H29: Estimated | I29: Burro | J29: Estimated
C30: Acres | D30: Acres | E30: Acres | F30: Acres | G30: AML | H30: Horse Pop | I30: AML | J30: Burro Pop
A31: MONTANA SUMMARY | C31: =SUM(C26+C9) -> 104361 | D31: =SUM(D26+D9) -> 119242 | E31: =SUM(E9) -> 28282 | F31: =SUM(F9) -> 8865 | G31: =SUM(G9) -> 105 | H31: =SUM(E26+H9) -> 154 | I31: =SUM(I9) -> 0 | J31: =SUM(F26+J9) -> 0
A33: MONTANA SUMMARY
A34: # of HMAs where WH&B AML is Established: | D34: 1
A35: # of HMAs where WH&B AML is Estimated: | D35: 0
A36: # of HMAs at AML: | D36: 0
A37: # of HMAs with Zero AML: | D37: 0
A38: * Only BLM acres displayed/Managed by USFS. | D38: 0
A39: ** Only BLM acres displayed/Managed by BLM. | D39: 1
A40: *** Only BLM acres displayed/Not managed. | D40: 0

Sheet Nevada
B2: PROJECTED 2/28/09 POPULATION ESTIMATES -- HMAS ABOVE AML | F2: 2008-07-09
C3: Horse | D3: Estimated | E3: Burro | F3: Estimated | K3: Horse | L3: Estimated | M3: Burro | N3: Estimated
B4: HERD AREA NAME | C4: AML (1,2) | D4: Horse Pop | E4: AML (1,2) | F4: Burro Pop | J4: HERD AREA NAME | K4: AML (1,2) | L4: Horse Pop | M4: AML (1,2) | N4: Burro Pop
A5: 1 | B5: ANTELOPE | C5: 324 | D5: 378 | E5: 0 | F5: 0 | I5: 22 | J5: MONTE CRISTO** | K5: 236 | L5: 326 | M5: 0 | N5: 0
A6: 2 | B6: ANTELOPE VALLEY | C6: 259 | D6: 371 | E6: 0 | F6: 0 | I6: 23 | J6: MONTEZUMA PEAK | K6: 0 | L6: 50 | M6: 0 | N6: 25
B7: APPLEWHITE | C7: 1 | D7: 7 | E7: 0 | F7: 0 | J7: MUDDY MOUNTAINS | K7: 0 | L7: 4 | M7: 0 | N7: 0
A8: Proposed Wtr 2009 | B8: BALD MOUNTAIN | C8: 215 | D8: 612 | E8: 0 | F8: 0 | I8: Gathered 7/08 | J8: NEVADA WILD HORSE RANGE | K8: 500 | L8: 300
A9: 3 - Funds requested | B9: BLACK ROCK RANGE EAST | C9: 93 | D9: 264 | E9: 0 | F9: 0 | I9: Gathered 7/08 | J9: NORTH STILLWATER | K9: 205 | L9: 122 | M9: 0 | N9: 1
A10: 4 - Funds requested | B10: BLACK ROCK RANGE WEST | C10: 93 | D10: 507 | E10: 0 | F10: 0 | I10: 24 - Prop'd Summer 09 | J10: OWYHEE | K10: 231 | L10: 538 | M10: 0 | N10: 0
B11: BLUE NOSE PEAK | C11: 1 | D11: 7 | E11: 0 | F11: 0 | I11: 25 | J11: PAYMASTER | K11: 38 | L11: 47 | M11: 0 | N11: 0
A12: 5 | B12: BUCK-BALD** | C12: 423 | D12: 504 | E12: 0 | F12: 0 | I12: 26 | J12: PINE NUT MOUNTAINS | K12: 179 | L12: 219 | M12: 0 | N12: 0
A13: 6 | B13: BUFFALO HILLS | C13: 314 | D13: 650 | E13: 0 | F13: 0 | I13: 27 - Proposed Sum '09 | J13: ROCK CREEK | K13: 250 | L13: 311 | M13: 0 | N13: 0
A14: 7 | B14: BUTTE | C14: 95 | D14: 114 | E14: 0 | F14: 0 | I14: Proposed Wtr 2009 | J14: ROCKY HILLS | K14: 143 | L14: 177 | M14: 0 | N14: 0
A15: 8 - Funds requested | B15: CALICO MOUNTAINS | C15: 333 | D15: 675 | E15: 0 | I15: 28 | J15: SAND SPRINGS EAST | K15: 257 | L15: 571 | M15: 0 | N15: 0
A16: Proposed Wtr 2009 | B16: CALLAGHAN | C16: 237 | D16: 999 | E16: 0 | F16: 0 | I16: 29 | J16: SAND SPRINGS WEST | K16: 49 | L16: 212 | M16: 0 | N16: 0
B17: CHERRY CREEK | C17: 0 | D17: 13 | E17: 0 | F17: 0 | I17: 30 | J17: SEAMAN | K17: 159 | L17: 210 | M17: 0 | N17: 0
A18: 9 | B18: CLOVER MOUNTAINS | C18: 16 | D18: 94 | E18: 0 | F18: 0 | I18: 31 | J18: SEVEN MILE** | K18: 50 | L18: 118 | M18: 0 | N18: 0
A19: 10 | B19: DESATOYA | C19: 180 | D19: 330 | E19: 0 | F19: 0 | J19: SILVER PEAK | K19: 0 | L19: 2 | M19: 0 | N19: 2
A20: 11 | B20: DIAMOND | C20: 151 | D20: 156 | E20: 0 | F20: 0 | I20: 32 - Prop'd Summer 09 | J20: SNOWSTORM MOUNTAINS | K20: 140 | L20: 215 | M20: 0 | N20: 0
A21: 12 | B21: DIAMOND HILLS NORTH | C21: 37 | D21: 65 | E21: 0 | F21: 0 | I21: 33 | J21: SPRUCE-PEQUOP | K21: 82 | L21: 173 | M21: 0 | N21: 0
A22: 13 | B22: DIAMOND HILLS SOUTH | C22: 22 | D22: 193 | E22: 0 | F22: 0 | J22: STONEWALL | K22: 0 | L22: 0 | M22: 8 | N22: 22
A23: 14 | B23: DRY LAKE | C23: 94 | D23: 316 | E23: 0 | F23: 0 | I23: 34 - Prop'd Summer 09 | J23: TOBIN RANGE | K23: 42 | L23: 257 | M23: 0 | N23: 0
A24: Gathered 7/08 | B24: FOX-LAKE RANGE | C24: 204 | D24: 164 | E24: 0 | F24: 0 | I24: 35 - Funds requested | J24: WARM SPRINGS CANYON | K24: 175 | L24: 716 | M24: 24 | N24: 27
A25: 15 | B25: GARFIELD FLAT | C25: 125 | D25: 143 | E25: 0 | F25: 0 | J25: WASSUK | K25: 165 | L25: 177 | M25: 0 | N25: 0
A26: 16 | B26: GOSHUTE | C26: 123 | D26: 233 | E26: 0 | F26: 0 | I26: 36 | J26: WHITE RIVER | K26: 90 | L26: 114 | M26: 0 | N26: 0
B27: GRANITE PEAK | C27: 18 | D27: 23 | E27: 0 | F27: 0 | I27: 37 | J27: WILSON CREEK | K27: 160 | L27: 463 | M27: 0 | N27: 0
A28: 17 | B28: GRANITE RANGE | C28: 258 | D28: 364 | E28: 0 | F28: 0 | J28: NORTH MONITOR* | K28: 8 | L28: 12 | M28: 0 | N28: 0
A29: 18 | B29: HIGHLAND PEAK | C29: 33 | D29: 42 | E29: 0 | F29: 0 | J29: TOTAL | K29: =SUM(C5:C60) -> 4008 | L29: =SUM(D5:D60) -> 7961 | M29: =SUM(E5:E60) -> 108 | N29: =SUM(F5:F60) -> 102
B30: JAKES WASH | C30: 21 | D30: 30 | E30: 0 | F30: 0 | J30: LOW AML | K30: 2400 | L30: 5561 | M30: 65 | N30: 37
A31: 20 | B31: JOHNNIE** | C31: 0 | D31: 59 | E31: 108 | F31: 102
B32: LAHONTAN | C32: 10 | D32: 40 | E32: 0 | F32: 0 | J32: Background Information
B33: LITTLE MOUNTAIN | C33: 15 | D33: 29 | E33: 0 | F33: 0 | J33: 2/28/08 Population Estimate | K33: 16606 | L33: (Includes 5/08 Data for Monte Cristo Complex)
A34: 21 - Prop'd Summer 09 | B34: LITTLE OWYHEE | C34: 298 | D34: 540 | E34: 0 | F34: 0 | J34: Projected 2/28/09 Estimate | K34: 19761 | L34: (2008 Foal Crop…19% per year average growth rate)
B35: MEADOW VALLEY MOUNTAINS | C35: 0 | D35: 7 | E35: 0 | F35: 0 | J35: Minus Summer 2008 Gathers | K35: -1518
B36: MILLER FLAT | C36: 15 | D36: 32 | E36: 0 | F36: 0 | J36: Current Est'd Population | K36: =SUM(K34:K35) -> 18243
J37: AML | K37: -13098
J38: Number Over AML | K38: =SUM(K36:K37) -> 5145 | L38: (39% Above AML)

Sheet New_Mexico
A1: NEW MEXICO WILD HORSE AND BURRO AREAS ADMINISTRATED BY THE BUREAU OF LAND MANAGEMENT | I1: FY 07
A3: HERD MANAGEMENT AREAS (HMAs) - AREAS MANAGED FOR WILD HORSES AND BURROS
P4: YEAR AML
C5: HERD | D5: AREA | E5: HERD MANAGEMENT AREA | K5: Last | L5: Year | M5: RANGE OF AML | P5: WAS
B6: Herd | C6: BLM | D6: Other | E6: BLM | F6: Other | G6: Horse | H6: Estimated | I6: Burro | J6: Estimated | K6: Gather | L6: Reach | M6: HIGH | N6: MID | O6: LOW | P6: ESTABLISHED
A7: HERD AREA NAME | B7: Code | C7: Acres | D7: Acres | E7: Acres | F7: Acres | G7: AML (1,2) | H7: Horse Pop | I7: AML (1,2) | J7: Burro Pop | K7: Mo/Year | L7: AML
A8: BORDO ATRAVESADO | B8: NM0001 | C8: 16486 | D8: 3128 | E8: 16486 | F8: 3128 | G8: 60 | H8: 77 | I8: 0 | J8: 0 | K8: 2005-08-01 | L8: 2005 | M8: 60 | N8: 50 | O8: 40 | P8: *****
A9: CARRACAS MESA*(3) | B9: NM0003 | C9: 8019 | D9: 979 | E9: 8019 | F9: 979 | G9: 23 | H9: 12 | I9: 0 | J9: 0 | M9: 23
A10: TOTAL | C10: =SUM(C8:C9) -> 24505 | D10: =SUM(D8:D9) -> 4107 | E10: =SUM(C8:C9) -> 24505 | F10: =SUM(F8+F9) -> 4107 | G10: =SUM(G8:G9) -> 83 | H10: =SUM(H8:H9) -> 89 | I10: =SUM(I8) -> 0 | J10: =SUM(J8) -> 0 | M10: =SUM(M8:M9) -> 83 | N10: =SUM(N8:N9) -> 50 | O10: =SUM(O8:O9) -> 40
A12: 1. Appropriate Management Levels, indicates estimated AML.
A13: 2. AML is reported as the maxium number of animals sustainable on a yearlong basis.
A14: 3. Horses on the FS winter on BLM but spend the rest of the time on FS land. Numbers will fluctuate with the weather and range conditions.
A16: HERD AREAS (HAs) - AREAS NOT MANAGED FOR WILD HORSES AND BURROS
C18: HERD | D18: AREA | G18: Last
B19: Herd | C19: BLM | D19: Other | E19: Estimated | F19: Estimated | G19: Gather
A20: HERD AREA NAME | B20: Code | C20: Acres | D20: Acres | E20: Horse Pop | F20: Burro Pop | G20: Mo/Year
A21: GODFREY HILLS | B21: NM0002 | C21: 9405 | D21: 17701 | E21: 0 | F21: 0
A22: PUNCHE VALLEY | B22: NM0004 | C22: 54743 | D22: 16066 | E22: 0 | F22: 0
A23: OUTSIDE OF HERD AREAS | B23: NM000Z | E23: 0 | F23: 0 | G23: 1995-04-01
A24: TOTAL | C24: =SUM(C21:C23) -> 64148 | D24: =SUM(D21:D23) -> 33767 | E24: =SUM(E21:E23) -> 0 | F24: =SUM(F21:F23) -> 0
C26: HERD | D26: AREA | E26: HERD MANAGEMENT AREA
C27: BLM | D27: Other | E27: BLM | F27: Other | G27: Horse | H27: Estimated | I27: Burro | J27: Estimated
C28: Acres | D28: Acres | E28: Acres | F28: Acres | G28: AML | H28: Horse Pop | I28: AML | J28: Burro Pop
A29: NEW MEXICO SUMMARY | C29: =SUM(C10+C24) -> 88653 | D29: =SUM(D10+D24) -> 37874 | E29: =SUM(E10) -> 24505 | F29: =SUM(F10) -> 4107 | G29: =SUM(G10) -> 83 | H29: =SUM(E24+H10) -> 89 | I29: =SUM(I10) -> 0 | J29: =SUM(F24+J10) -> 0
A31: NEW MEXICO SUMMARY
A32: # of HMAs where WH&B AML is Established: | D32: 2
A33: # of HMAs where WH&B AML is Estimated: | D33: 0
A34: # of HMAs at AML: | D34: 1
A35: # of HMAs with Zero AML: | D35: 0
A36: * Only BLM acres displayed/Managed by USFS. | D36: 1
A37: ** Only BLM acres displayed/Managed by BLM. | D37: 0
A38: *** Only BLM acres displayed/Not managed. | D38: 0

Sheet Oregon
A1: OREGON WILD HORSE AND BURRO AREAS ADMINISTRATED BY THE BUREAU OF LAND MANAGEMENT | H1: FY 07 | S1: YEAR AML
P2: RANGE OF AML
A3: HERD MANAGEMENT AREAS (HMAs) - AREAS MANAGED FOR WILD HORSES AND BURROS | P3: HIGH
P4: YEAR AML
C5: HERD AREA | E5: HERD MANAGEMENT AREA | K5: Last | L5: Year | M5: RANGE OF AML | P5: WAS
B6: Herd | C6: BLM | D6: Other | E6: BLM | F6: Other | G6: Horse | H6: Estimated | I6: Burro | J6: Estimated | K6: Gather | L6: Reach | M6: HIGH | N6: MID | O6: LOW | P6: ESTABLISHED
A7: HERD AREA NAME | B7: Code | C7: Acres | D7: Acres | E7: Acres | F7: Acres | G7: AML (1,2) | H7: Horse Pop | I7: AML (1,2) | J7: Burro Pop | K7: Mo/Year | L7: AML
A8: BEATYS BUTTE | B8: OR0002 | C8: 399185 | D8: 38837 | E8: 399185 | F8: 38837 | G8: 250 | H8: 151 | I8: 0 | J8: 0 | K8: 2004-08-01 | L8: 2004 | M8: 140 | N8: 107 | O8: 73 | P8: 1987
A9: COLD SPRING | B9: OR0013 | C9: 29877 | D9: 2788 | E9: 29877 | F9: 2788 | G9: 150 | H9: 90 | I9: 0 | J9: 0 | K9: 2005-07-01 | L9: 2005 | M9: 250 | N9: 175 | O9: 100 | P9: 2003
A10: COYOTE LAKE/ALVORD TULE SPRINGS | B10: OR0014 | C10: 611976 | D10: 46976 | E10: 552780 | F10: 35649 | G10: 390 | H10: 232 | I10: 0 | J10: 0 | K10: 2006-02-01 | L10: 2006 | M10: 150 | N10: 113 | O10: 75 | P10: 2002
A11: HOG CREEK | B11: OR0011 | C11: 21816 | D11: 566 | E11: 21816 | F11: 566 | G11: 50 | H11: 85 | I11: 0 | J11: 0 | K11: 2003-09-01 | L11: 2003 | M11: 250 | N11: 188 | O11: 125 | P11: 2002
A12: JACKIES BUTTE | B12: OR0015 | C12: 120900 | D12: 2867 | E12: 65211 | F12: 40 | G12: 150 | H12: 145 | I12: 0 | J12: 0 | K12: 2000-09-01 | L12: 2003 | M12: 302 | N12: 232 | O12: 161 | P12: 2002
A13: KIGER | B13: OR0010 | C13: 26863 | D13: 11496 | E13: 26626 | F13: 3674 | G13: 82 | H13: 128 | I13: 0 | J13: 0 | K13: 2003-11-01 | L13: 2004 | M13: 50 | N13: 40 | O13: 30 | P13: 2002
A14: LIGGETT TABLE | B14: OR0037 | C14: 28139 | D14: 714 | E14: 28139 | F14: 714 | G14: 25 | H14: 32 | I14: 0 | J14: 0 | K14: 2006-07-01 | L14: 2006 | M14: 150 | N14: 113 | O14: 75 | P14: 2002
A15: PAISLEY DESERT | B15: OR0001 | C15: 328050 | D15: 7698 | E15: 297764 | F15: 6210 | G15: 150 | H15: 170 | I15: 0 | J15: 0 | K15: 2003-11-01 | L15: 2004 | M15: 82 | N15: 67 | O15: 51 | P15: 1992
A16: PALOMINO BUTTES | B16: OR0006 | C16: 85200 | D16: 12805 | E16: 71415 | F16: 2816 | G16: 64 | H16: 43 | I16: 0 | J16: 0 | K16: 2005-09-01 | L16: 2005 | M16: 25 | N16: 18 | O16: 10 | P16: 1989
A17: POKEGAMA | B17: OR0018 | C17: 15903 | D17: 54603 | E17: 15903 | F17: 54603 | G17: 50 | H17: 43 | I17: 0 | J17: 0 | K17: 2000-06-01 | L17: 2002 | M17: 110 | N17: 85 | O17: 60 | P17: 2003
A18: RIDDLE MOUNTAIN | B18: OR0009 | C18: 29858 | D18: 71810 | E18: 28239 | F18: 4426 | G18: 56 | H18: 66 | I18: 0 | J18: 0 | K18: 2003-09-01 | L18: 2003 | M18: 64 | N18: 48 | O18: 32 | P18: 1992
A19: SAND SPRINGS | B19: OR0017 | C19: 193052 | D19: 14201 | E19: 193052 | F19: 14201 | G19: 200 | H19: 35 | I19: 0 | J19: 0 | K19: 2006-09-01 | L19: 2006 | M19: 50 | N19: 40 | O19: 30 | P19: 1996
A20: SHEEPSHEAD/HEATH CREEK (3) | B20: OR0016 | C20: 198749 | D20: 6527 | E20: 198749 | F20: 6527 | G20: 302 | H20: 300 | I20: 0 | J20: 0 | K20: 2002-01-01 | L20: 2002 | M20: 56 | N20: 45 | O20: 33 | P20: 1992
A21: SOUTH STEENS | B21: OR0003 | C21: 186348 | D21: 94367 | E21: 126424 | F21: 8034 | G21: 304 | H21: 229 | I21: 0 | J21: 0 | K21: 2004-11-01 | L21: 2005 | M21: 200 | N21: 150 | O21: 100 | P21: 2002
A22: STINKINGWATER | B22: OR0008 | C22: 78196 | D22: 13925 | E22: 78196 | F22: 13925 | G22: 80 | H22: 48 | I22: 0 | J22: 0 | K22: 2005-09-01 | L22: 2005 | P22: 2002
A23: THREE FINGERS | B23: OR0012 | C23: 82259 | D23: 10423 | E23: 61893 | F23: 9593 | G23: 150 | H23: 75 | I23: 0 | J23: 0 | K23: 2006-08-01 | L23: 2006 | M23: 304 | N23: 232 | O23: 159 | P23: 1987
A24: WARM SPRINGS | B24: OR0007 | C24: 474196 | D24: 25258 | E24: 474196 | F24: 25258 | G24: 202 | H24: 123 | I24: 25 | J24: 15 | K24: 2006-09-01 | L24: 2006 | M24: 80 | N24: 60 | O24: 40 | P24: 1992
A25: MURDERERS CREEK* | B25: OR0019 | C25: 33944 | D25: 31865 | E25: 33944 | F25: 31865 | G25: 35 | H25: 97 | I25: 0 | J25: 0 | K25: 2005-02-01 | L25: 2005 | M25: 150 | N25: 113 | O25: 75 | P25: 2002
A26: TOTAL | C26: =SUM(C8:C25) -> 2944511 | D26: 447726 | E26: 2703409 | F26: 259726 | G26: 2690 | H26: 2092 | I26: 25 | J26: 15 | M26: 202 | N26: 157 | O26: 111 | P26: 1992
M27: 35 | P27: 1990
A28: 1. Appropriate Management Levels, indicates estimated AML. | M28: =SUM(M8:M27) -> 2650 | N28: =SUM(N8:N27) -> 1983 | O28: =SUM(O8:O27) -> 1340
A29: 2. AML is reported as the maxium number of animals sustainable on a yearlong basis.
A30: 3. Heath Creek-Sheepshead (OR004) was combined with Sheepshead (OR016) in the Southeast Oregon RMP, Sept. 2002.
A31: 4. Coyote Lake was combined with Alvord Tule Springs in the Andrews Management Unit RMP, 2005.
A33: HERD AREAS (HAs) - AREAS NOT MANAGED FOR WILD HORSES AND BURROS
C35: HERD | D35: AREA | G35: Last
B36: Herd | C36: BLM | D36: Other | E36: Estimated | F36: Estimated | G36: Gather
A37: HERD AREA NAME | B37: Code | C37: Acres | D37: Acres | E37: Horse Pop | F37: Burro Pop | G37: Mo/Year
A38: ALVORD TULE SPRINGS | B38: OR0005 | C38: 0 | D38: 0 | E38: 0 | F38: 0
A39: ATTURBURY | B39: OR0028 | C39: 7837 | D39: 1777 | E39: 0 | F39: 0
A40: BASQUE | B40: OR0025 | C40: 8555 | D40: 824 | E40: 0 | F40: 0
A41: CHERRY CREEK | B41: OR0021 | C41: 35473 | D41: 103538 | E41: 0 | F41: 0
A42: COTTONWOOD BASIN | B42: OR0026 | C42: 7782 | D42: 261 | E42: 0 | F42: 0
A43: COTTONWOOD CREEK | B43: OR0027 | C43: 24282 | D43: 467 | E43: 0 | F43: 0
A44: DIAMOND CRATERS | B44: OR0031 | C44: 41025 | D44: 13492 | E44: 0 | F44: 0
A45: EAST WAGONTIRE | B45: OR0034 | C45: 111725 | D45: 84229 | E45: 0 | F45: 0
A46: HEATH CREEK-SHEEPSHEAD (in OR0016) | B46: OR0004 | C46: 0 | D46: 0 | E46: 0 | F46: 0
A47: LAKERIDGE | B47: OR0023 | C47: 3978 | D47: 377 | E47: 0 | F47: 0
A48: MIDDLE FORK | B48: OR0032 | C48: 37339 | D48: 5943 | E48: 0 | F48: 0
A49: MORGER | B49: OR0030 | C49: 184 | D49: 26670 | E49: 0 | F49: 0
A50: POTHOLES | B50: OR0024 | C50: 9225 | D50: 1032 | E50: 0 | F50: 0 | G50: 1990-12-01
A51: PUEBLO-LONE MOUNTAIN | B51: OR0036 | C51: 229486 | D51: 3320 | E51: 0 | F51: 0 | G51: 1992-11-01
A52: RHODES CANYON | B52: OR0022 | C52: 14779 | D52: 24223 | E52: 0 | F52: 0
A53: SECOND FLAT | B53: OR0033 | C53: 9159 | D53: 545 | E53: 0 | F53: 0
A54: SOUTH CATLOW | B54: OR0035 | C54: 42457 | D54: 54761 | E54: 0 | F54: 0
A55: STOCKADE | B55: OR0029 | C55: 32138 | D55: 16065 | E55: 0 | F55: 0
A56: OUTSIDE HERD AREAS | B56: OR000Z | E56: 0 | F56: 0 | G56: 1995-11-01
A57: TOTAL | C57: =SUM(C39:C55) -> 615424 | D57: =SUM(D39:D55) -> 337524 | E57: 0 | F57: 0
C59: HERD | D59: AREA | E59: HERD MANAGEMENT AREA
C60: BLM | D60: Other | E60: BLM | F60: Other | G60: Horse | H60: Estimated | I60: Burro | J60: Estimated
C61: Acres | D61: Acres | E61: Acres | F61: Acres | G61: AML | H61: Horse Pop | I61: AML | J61: Burro Pop
A62: OREGON SUMMARY | C62: =SUM(C57+C26) -> 3559935 | D62: =SUM(D57+D26) -> 785250 | E62: =SUM(E26) -> 2703409 | F62: =SUM(F26) -> 259726 | G62: =SUM(G26) -> 2690 | H62: =SUM(H26+E57) -> 2092 | I62: =SUM(I26) -> 25 | J62: =SUM(J26+F57) -> 15
A64: OREGON SUMMARY
A65: # of HMAs where WH&B AML is Established: | C65: 18
A66: # of HMAs where WH&B AML is Estimated: | C66: 0
A67: # of HMAs at AML: | C67: 12
A68: # of HMAs with Zero AML: | C68: 0
A69: * Only BLM acres displayed/Managed by USFS. | C69: 1
A70: ** Only BLM acres displayed/Managed by BLM. | C70: 0
A71: *** Only BLM acres displayed/Not managed. | C71: 0

Sheet Utah
A1: UTAH WILD HORSE AND BURRO HERD AREAS ADMINISTERED BY BUREAU OF LAND MANAGEMENT | I1: FY 07
A3: HERD MANAGEMENT AREAS (HMAs) - AREAS MANAGED FOR WILD HORSES AND BURROS
Q4: YEAR AML
C5: HERD | D5: AREA | E5: HERD MANAGEMENT AREA | G5: Acres | H5: Horse | I5: Estimated | J5: Burro | K5: Estimated | L5: Last | M5: Year | N5: RANGE OF AML | Q5: WAS
B6: Herd | C6: BLM | D6: Other | E6: BLM | F6: Other | G6: Transferred | H6: AML (1,2) | I6: Horse Pop | J6: AML (1,2) | K6: Burro Pop | L6: Gather | M6: Reach | N6: HIGH | O6: MID | P6: LOW | Q6: ESTABLISHED
A7: HERD AREA NAME | B7: Code | C7: Acres | D7: Acres | E7: Acres | F7: Acres | G7: from BLM | L7: Mo/Year | M7: AML
A8: BIBLE SPRING (3) | B8: UT0440 | C8: 139464 | D8: 17071 | E8: 136256 | F8: 16306 | G8: 0 | H8: 60 | I8: 40 | J8: 0 | K8: 0 | L8: 2005-10-01 | M8: 2006 | N8: 30 | Q8: 1983
A9: CANYON LANDS | B9: UT0571 | C9: 77253 | D9: 10448 | E9: 77253 | F9: 10448 | G9: 0 | H9: 0 | I9: 0 | J9: 100 | K9: 83 | L9: 1984-05-01 | M9: 2003 | N9: 65 | Q9: 1983
A10: CEDAR MOUNTAIN | B10: UT0241 | C10: 300032 | D10: 111591 | E10: 197252 | F10: 14333 | G10: 0 | H10: 390 | I10: 355 | J10: 0 | K10: 0 | L10: 2004-09-01 | M10: 2004 | N10: 75 | Q10: 2001
A11: CHLORIDE CANYON | B11: UT0442 | C11: 44285 | D11: 21123 | E11: 42560 | F11: 21123 | G11: 0 | H11: 30 | I11: 59 | J11: 0 | K11: 0 | L11: 2004-07-01 | M11: 2004 | N11: 390 | O11: 273 | P11: 190 | Q11: 2003
A12: CHOKE CHERRY | B12: UT0443 | C12: 39760 | D12: 8360 | E12: 39171 | F12: 8349 | G12: 0 | H12: 30 | I12: 20 | J12: 0 | K12: 0 | L12: 2007-02-01 | M12: 2007 | N12: 30 | Q12: 1986
A13: CONFUSION | B13: UT0552 | C13: 255753 | D13: 37770 | E13: 255753 | F13: 37770 | G13: 0 | H13: 115 | I13: 142 | J13: 0 | K13: 0 | L13: 2004-09-01 | M13: 2004 | N13: 30 | Q13: 1983
A14: CONGER | B14: UT0553 | C14: 151504 | D14: 19438 | E14: 151504 | F14: 19438 | G14: 0 | H14: 80 | I14: 70 | J14: 0 | K14: 0 | L14: 2006-08-01 | M14: 2006 | N14: 115 | Q14: 1997
A15: FOUR MILE (3) | B15: UT0444 | C15: 52984 | D15: 8289 | E15: 50857 | F15: 7853 | G15: 0 | H15: 60 | I15: 35 | J15: 0 | K15: 0 | L15: 2005-10-01 | M15: 2006 | N15: 80 | O15: 60 | P15: 40 | Q15: 1987
A16: FRISCO | B16: UT0445 | C16: 48743 | D16: 11623 | E16: 46508 | F16: 11495 | G16: 0 | H16: 60 | I16: 54 | J16: 0 | K16: 0 | L16: 2006-08-01 | M16: 2006 | N16: 90 | Q16: 1983
A17: HILL CREEK | B17: UT0852 | C17: 103206 | D17: 32919 | E17: 54245 | F17: 32919 | G17: 48961 | H17: 195 | I17: 310 | J17: 0 | K17: 0 | L17: 2003-07-01 | M17: 2003 | N17: 60 | Q17: 1983
A18: KINGTOP | B18: UT0554 | C18: 161566 | D18: 9898 | E18: 161566 | F18: 9898 | G18: 0 | H18: 40 | I18: 10 | J18: 0 | K18: 0 | L18: 2000-08-01 | M18: 2002 | N18: 195 | Q18: 1985
A19: MOUNT ELINOR | B19: UT0446 | C19: 37370 | D19: 5240 | E19: 34036 | F19: 4127 | G19: 0 | H19: 25 | I19: 15 | J19: 0 | K19: 0 | L19: 2007-02-01 | M19: 2007 | N19: 40 | O19: 30 | P19: 20 | Q19: 1987
A20: MUDDY CREEK | B20: UT0651 | C20: 168853 | D20: 21879 | E20: 168853 | F20: 21879 | G20: 0 | H20: 50 | I20: 74 | J20: 0 | K20: 0 | L20: 2001-07-01 | M20: 2001 | N20: 25 | Q20: 1983
A21: NORTH HILLS** | B21: UT0447 | C21: 50075 | D21: 10534 | E21: 40647 | F21: 9213 | G21: 0 | H21: 36 | I21: 52 | J21: 0 | K21: 0 | L21: 2002-07-01 | M21: 2002 | N21: 50 | P21: 30 | Q21: 1991
A22: ONAQUI MOUNTAIN | B22: UT0242 | C22: 375847 | D22: 131741 | E22: 206795 | F22: 33251 | G22: 0 | H22: 210 | I22: 166 | J22: 0 | K22: 0 | L22: 2005-08-01 | M22: 2005 | N22: 60 | P22: 40 | Q22: 1983
A23: RANGE CREEK | B23: UT0641 | C23: 54630 | D23: 24010 | E23: 54630 | F23: 24010 | G23: 0 | H23: 125 | I23: 76 | J23: 0 | K23: 0 | L23: 2006-07-01 | M23: 2006 | N23: 210 | O23: 159 | P23: 121 | Q23: 2003
A24: ROBBERS ROOST | B24: UT0653 | C24: 150755 | D24: 19151 | E24: 150755 | F24: 19151 | G24: 0 | H24: 25 | I24: 21 | J24: 0 | K24: 0 | L24: 2003-08-01 | M24: 2003 | N24: 125 | O24: 100 | P24: 75 | Q24: 1994
A25: SINBAD | B25: UT0652 | C25: 203767 | D25: 26830 | E25: 203767 | F25: 26830 | G25: 0 | H25: 50 | I25: 65 | J25: 70 | K25: 112 | L25: 2001-09-01 | M25: 2001 | N25: 25 | P25: 15 | Q25: 1991
A26: SULPHUR | B26: UT0448 | C26: 230125 | D26: 36992 | E26: 230125 | F26: 35496 | G26: 0 | H26: 250 | I26: 413 | J26: 0 | K26: 0 | L26: 2006-08-01 | M26: 2003 | N26: 50H 70B | P26: 30H 50B | Q26: 1993
A27: SWASEY | B27: UT0555 | C27: 128174 | D27: 6781 | E27: 128174 | F27: 6781 | G27: 0 | H27: 100 | I27: 250 | J27: 0 | K27: 0 | L27: 2003-09-01 | M27: 2003 | N27: 250 | Q27: 1987
A28: TILLY CREEK (3) | B28: UT0449 | C28: 32974 | D28: 4032 | E28: 32019 | F28: 3944 | G28: 0 | H28: 50 | I28: 40 | J28: 0 | K28: 0 | L28: 2002-09-01 | M28: 2002 | N28: 100 | Q28: 1997
A29: TOTAL | C29: =SUM(C8:C28) -> 2807120 | D29: 575720 | E29: 2462726 | F29: 374614 | G29: 48961 | H29: 1981 | I29: 2267 | J29: 170 | K29: 195 | N29: 50 | Q29: 1983
N30: 2215
A31: 1. Appropriate Management Levels, indicates estimated AML.
A32: 2. AML is reported as the maxium number of animals sustainable on a yearlong basis.
A33: 3. Herd areas managed in Bible Springs Complex include Bible Springs, Four Mile, and Tilly Creek.
A35: HERD AREAS (HAs) - AREAS NOT MANAGED FOR WILD HORSES AND BURROS
C37: HERD | D37: AREA | E37: Acres | H37: Last
B38: Herd | C38: BLM | D38: Other | E38: Transferred | F38: Estimated | G38: Estimated | H38: Gather
A39: HERD AREA NAME | B39: Code | C39: Acres | D39: Acres | E39: from BLM | F39: Horse Pop | G39: Burro Pop | H39: Mo/Year
A40: BLAWN WASH (4) | B40: UT0441 | C40: 35744 | D40: 27043 | E40: 20861 | F40: 35 | G40: 0 | H40: 2005-10-01
A41: BONANZA | B41: UT0851 | C41: 120580 | D41: 21224 | E41: 0 | F41: 0 | G41: 0 | H41: 2001-11-01
A42: BURBANK | B42: UT0551 | C42: 58447 | D42: 7016 | E42: 0 | F42: 0 | G42: 0
A43: HARVEYS FEAR | B43: UT0461 | C43: 18099 | D43: 0 | E43: 12474 | F43: 15 | G43: 0 | H43: 1985-06-01
A44: MOODY-WAGON BOX MESA | B44: UT0481 | C44: 71452 | D44: 0 | E44: 17685 | F44: 0 | G44: 0
A45: OQUIRRH MOUNTAIN | B45: UT0243 | C45: 80489 | D45: 50253 | E45: 0 | F45: 5 | G45: 0 | H45: 1995-01-01
A46: WINTER RIDGE | B46: UT0853 | C46: 38916 | D46: 7508 | E46: 0 | F46: 150 | G46: 0 | H46: 2003-07-01
A47: BIG CREEK*** | B47: UT0244 | C47: 5331 | D47: 412 | E47: 0 | F47: 10 | G47: 0
A48: OUTSIDE HERD AREAS | B48: UT000Z | E48: 0 | F48: 61 | G48: 0 | H48: 2005-07-01
A49: TOTAL | C49: =SUM(C40:C48) -> 429058 | D49: =SUM(D40:D48) -> 113456 | E49: =SUM(E40:E48) -> 51020 | F49: =SUM(F40:F48) -> 276 | G49: 0
A51: 4. Blawn Wash reverted back to HA status due to Utah West Desert Land Exchange, 2000.
A52: 5. Outside herd areas include: North Hills (17); Mineral Range (19); Partoun (50; and South Onaqui (8) = 61.
C54: HERD | D54: AREA | E54: HERD MANAGEMENT AREA | G54: Acres
C55: BLM | D55: Other | E55: BLM | F55: Other | G55: Transferred | H55: Horse | I55: Estimated | J55: Burro | K55: Estimated
C56: Acres | D56: Acres | E56: Acres | F56: Acres | G56: from BLM | H56: AML | I56: Horse Pop | J56: AML | K56: Burro Pop
A57: UTAH SUMMARY | C57: =C49+C29 -> 3236178 | D57: =D49+D29 -> 689176 | E57: =E29 -> 2462726 | F57: =F29 -> 374614 | G57: =E49+G29 -> 99981 | H57: =H29 -> 1981 | I57: =I29+F49 -> 2543 | J57: =J29 -> 170 | K57: =K29+G49 -> 195
A59: UTAH SUMMARY
A60: # of HMAs where WH&B AML is Established: | D60: 21
A61: # of HMAs where WH&B AML is Estimated: | D61: 0
A62: # of HMAs at AML: | D62: 13
A63: # of HMAs with Zero AML: | D63: 0
A64: * Only BLM acres displayed/Managed by USFS. | D64: 0
A65: ** Only BLM acres displayed/Managed by BLM. | D65: 1
A66: *** Only BLM acres displayed/Not managed. | D66: 1

Sheet Wyoming
A1: WYOMING WILD HORSE AND BURRO AREAS ADMINISTRATED BY THE BUREAU OF LAND MANAGEMENT | H1: FY 07
A3: HERD MANAGEMENT AREAS (HMAs) - AREAS MANAGED FOR WILD HORSES AND BURROS
P4: YEAR AML
C5: HERD | D5: AREA | E5: HERD MANAGEMENT AREA | K5: Last | L5: Year | M5: RANGE OF AML | P5: WAS
B6: Herd | C6: BLM | D6: Other | E6: BLM | F6: Other | G6: Horse | H6: Estimated | I6: Burro | J6: Estimated | K6: Gather | L6: Reach | M6: HIGH | N6: MID | O6: LOW | P6: ESTABLISHED
A7: HERD AREA NAME | B7: Code | C7: Acres | D7: Acres | E7: Acres | F7: Acres | G7: AML (1,2) | H7: Horse Pop | I7: AML (1,2) | J7: Burro Pop | K7: Mo/Year | L7: AML
A8: ADOBE TOWN | B8: WY0009 | C8: 444321 | D8: 34757 | E8: 444321 | F8: 34757 | G8: 800 | H8: 577 | I8: 0 | J8: 0 | K8: 2007-01-01 | L8: 2007 | M8: 800 | N8: 700 | O8: 610 | P8: 1994
A9: ANTELOPE HILLS | B9: WY0031 | C9: 156233 | D9: 9252 | E9: 150896 | F9: 7796 | G9: 82 | H9: 86 | I9: 0 | J9: 0 | K9: 2004-10-01 | L9: 2005 | M9: 82 | N9: 70 | O9: 60 | P9: 1994
A10: CONANT CREEK | B10: WY0029 | C10: 50518 | D10: 8313 | E10: 49528 | F10: 8190 | G10: 100 | H10: 112 | I10: 0 | J10: 0 | K10: 2004-10-01 | L10: 2005 | M10: 100 | N10: 80 | O10: 60 | P10: 1993
A11: CROOKS MOUNTAIN | B11: WY0036 | C11: 75821 | D11: 8045 | E11: 54726 | F11: 3698 | G11: 85 | H11: 60 | I11: 0 | J11: 0 | K11: 2006-09-01 | L11: 2006 | M11: 85 | N11: 75 | O11: 65 | P11: 1994
A12: DISHPAN BUTTE | B12: WY0028 | C12: 101425 | D12: 8910 | E12: 92275 | F12: 7466 | G12: 100 | H12: 142 | I12: 0 | J12: 0 | K12: 2004-10-01 | L12: 2005 | M12: 100 | N12: 75 | O12: 50 | P12: 1993
A13: DIVIDE BASIN | B13: WY0002 | C13: 561453 | D13: 217507 | E13: 561453 | F13: 217507 | G13: 600 | H13: 752 | I13: 0 | J13: 0 | K13: 2006-09-01 | L13: 2004 | M13: 600 | N13: 500 | O13: 415 | P13: 1997
A14: FIFTEENMILE | B14: WY0011 | C14: 218077 | D14: 44098 | E14: 68673 | F14: 12536 | G14: 160 | H14: 115 | I14: 0 | J14: 0 | K14: 2004-07-01 | L14: 2004 | M14: 160 | N14: 115 | O14: 70 | P14: 1998
A15: GREEN MOUNTAIN | B15: WY0037 | C15: 115959 | D15: 26950 | E15: 99311 | F15: 17363 | G15: 300 | H15: 163 | I15: 0 | J15: 0 | K15: 2006-08-01 | L15: 2006 | M15: 300 | N15: 235 | O15: 170 | P15: 1993
A16: LITTLE COLORADO | B16: WY0039 | C16: 530698 | D16: 105020 | E16: 527307 | F16: 105020 | G16: 100 | H16: 152 | I16: 0 | J16: 0 | K16: 2003-11-01 | L16: 2004 | M16: 100 | N16: 100 | O16: 69 | P16: 1997
A17: LOST CREEK | B17: WY0035 | C17: 236353 | D17: 15041 | E17: 236353 | F17: 15041 | G17: 82 | H17: 117 | I17: 0 | J17: 0 | K17: 2006-08-01 | L17: 2006 | M17: 82 | N17: 70 | O17: 60 | P17: 1994
A18: MCCULLOUGH PEAKS | B18: WY0012 | C18: 118665 | D18: 30631 | E18: 103920 | F18: 5928 | G18: 140 | H18: 141 | I18: 0 | J18: 0 | K18: 2004-10-01 | L18: 2005 | M18: 140 | N18: 105 | O18: 70 | P18: 1990
A19: MUSKRAT BASIN | B19: WY0027 | C19: 180939 | D19: 20585 | E19: 176340 | F19: 16922 | G19: 250 | H19: 305 | I19: 0 | J19: 0 | K19: 2004-10-01 | L19: 2005 | M19: 250 | N19: 205 | O19: 160 | P19: 1993
A20: ROCK CREEK MOUNTIAN | B20: WY0026 | C20: 19125 | D20: 5483 | E20: 19100 | F20: 5483 | G20: 86 | H20: 62 | I20: 0 | J20: 0 | K20: 2001-09-01 | L20: 2001 | M20: 86 | N20: 68 | O20: 50 | P20: 1993
A21: SALT WELLS CREEK | B21: WY0001 | C21: 918317 | D21: 516502 | E21: 688632 | F21: 483993 | G21: 365 | H21: 327 | I21: 0 | J21: 0 | K21: 2007-01-01 | L21: 2005 | M21: 365 | N21: 308 | O21: 251 | P21: 1997
A22: STEWART CREEK | B22: WY0033 | C22: 184745 | D22: 29330 | E22: 157514 | F22: 10329 | G22: 175 | H22: 145 | I22: 0 | J22: 0 | K22: 2006-08-01 | L22: 2006 | M22: 175 | N22: 150 | O22: 125 | P22: 1994
A23: WHITE MOUNTAIN | B23: WY0003 | C23: 207981 | D23: 185092 | E23: 207981 | F23: 185092 | G23: 300 | H23: 681 | I23: 0 | J23: 0 | K23: 2003-11-01 | L23: 2004 | M23: 300 | N23: 250 | O23: 205 | P23: 1997
A24: TOTAL | C24: =SUM(C8:C23) -> 4120630 | D24: 1265516 | E24: 3638330 | F24: 1137121 | G24: 3725 | H24: 3937 | I24: =SUM(I3:I23) -> 0 | J24: =SUM(J3:J23) -> 0 | M24: =SUM(M8:M23) -> 3725 | N24: =SUM(N8:N23) -> 3106 | O24: =SUM(O8:O23) -> 2490
A26: 1. Appropriate Management Levels, indicates estimated AML.
A27: 2. AML is reported as the maxium number of animals sustainable on a yearlong basis.
A29: HERD AREAS (HAs) - AREAS NOT MANAGED FOR WILD HORSES AND BURROS
C31: HERD | D31: AREA | G31: Last
B32: Herd | C32: BLM | D32: Other | E32: Estimated | F32: Estimated | G32: Gather
A33: HERD AREA NAME | B33: Code | C33: Acres | D33: Acres | E33: Horse Pop | F33: Burro Pop | G33: Mo/Year
A34: ALKALI SPRING CREEK | B34: WY0020 | C34: 2522 | D34: 2659 | E34: 0 | F34: 0
A35: ARAPAHO CREEK | B35: WY0034 | C35: 168558 | D35: 17160 | E35: 0 | F35: 0
A36: BOLTEN | B36: WY0025 | C36: 61714 | D36: 83681 | E36: 0 | F36: 0
A37: CARTER LEASE | B37: WY0017 | C37: 123254 | D37: 173299 | E37: 0 | F37: 0
A38: CHECKERBOARD SOUTH | B38: WY0040 | C38: 324123 | D38: 357472 | E38: 0 | F38: 0
A39: CONTINENTAL PEAK (in WY0002 & WY0035) | B39: WY0043 | C39: 366152 | D39: 27926 | E39: 0 | F39: 0
A40: COPPER MOUNTAIN | B40: WY0041 | C40: 20029 | D40: 8962 | E40: 0 | F40: 0
A41: CUMBERLAND | B41: WY0015 | C41: 241462 | D41: 180995 | E41: 0 | F41: 0 | G41: 1990-04-01
A42: CYCLONE RIM (in WY0035) | B42: WY0010 | C42: 0 | D42: 0 | E42: 0 | F42: 0
A43: DEER CREEK | B43: WY0024 | C43: 6477 | D43: 54767 | E43: 0 | F43: 0
A44: DESERT | B44: WY0004 | C44: 152386 | D44: 8116 | E44: 0 | F44: 0 | G44: 2001-11-01
A45: DOTY MOUNTAIN/CHEROKEE | B45: WY0032 | C45: 243326 | D45: 205909 | E45: 0 | F45: 0
A46: EAST BEAVER | B46: WY0030 | C46: 31390 | D46: 6244 | E46: 0 | F46: 0
A47: FOSTER GULCH/DRY CREEK | B47: WY0023 | C47: 110938 | D47: 6576 | E47: 0 | F47: 0
A48: GOLD CREEK | B48: WY0014 | C48: 29737 | D48: 9902 | E48: 0 | F48: 0
A49: GRANGER LEASE | B49: WY0005 | C49: 171443 | D49: 199015 | E49: 0 | F49: 0 | G49: 1986-04-01
A50: LA BARGE | B50: WY0006 | C50: 133030 | D50: 21233 | E50: 0 | F50: 0 | G50: 1988-07-01
A51: NORTH GRANGER | B51: WY0018 | C51: 132366 | D51: 96887 | E51: 0 | F51: 0
A52: NORTH SHOSHONE | B52: WY0019 | C52: 20342 | D52: 4452 | E52: 0 | F52: 0
A53: ROCK SPRINGS (in WY0009, WY0002, WY0003, WY0001) | B53: WY0038 | C53: 156084 | D53: 208520 | E53: 0 | F53: 0
A54: SAND CREEK EAST (in WY0009) | B54: WY0042 | C54: 168848 | D54: 13091 | E54: 0 | F54: 0
A55: SAND CREEK WEST (in WY0009) | B55: WY0044 | C55: 18649 | D55: 3338 | E55: 0 | F55: 0
A56: SAND DRAW | B56: WY0021 | C56: 13758 | D56: 1561 | E56: 0 | F56: 0
A57: SLATE CREEK | B57: WY0016 | C57: 173979 | D57: 32473 | E57: 0 | F57: 0
A58: TRIANGLE | B58: WY0013 | C58: 295057 | D58: 39496 | E58: 0 | F58: 0
A59: ZIMMERMAN SPRINGS | B59: WY0022 | C59: 11524 | D59: 760 | E59: 0 | F59: 0
A60: OUTSIDE OF HERD AREAS | B60: WY000Z | E60: 140 | F60: 0 | G60: 2005-08-01
A61: TOTAL | C61: =SUM(C34:C60) -> 3177148 | D61: =SUM(D34:D59) -> 1764494 | E61: =SUM(E34:E60) -> 140 | F61: =SUM(F34:F60) -> 0
A62: LANDER (in WY0026, WY0027, WY0028, WY0029) | B62: WY0007 | G62: 1992-11-01
A63: STEWART CREEK/CHAIN LAKES (in WY0001, WY0033, WY0035) | B63: WY0008
C65: HERD | D65: AREA | E65: HERD MANAGEMENT AREA
C66: BLM | D66: Other | E66: BLM | F66: Other | G66: Horse | H66: Estimated | I66: Burro | J66: Estimated
C67: Acres | D67: Acres | E67: Acres | F67: Acres | G67: AML | H67: Horse Pop | I67: AML | J67: Burro Pop
A68: WYOMING SUMMARY | C68: =SUM(C24+C61) -> 7297778 | D68: =SUM(D24+D61) -> 3030010 | E68: =SUM(E24) -> 3638330 | F68: =SUM(F24) -> 1137121 | G68: =SUM(G24) -> 3725 | H68: =SUM(H24+E61) -> 4077 | I68: =SUM(I24) -> 0 | J68: =SUM(J24+F61) -> 0
A70: WYOMING SUMMARY
A71: # of HMAs where WH&B AML is Established: | C71: 16
A72: # of HMAs where WH&B AML is Estimated: | C72: 0
A73: # of HMAs at AML: | C73: 8
A74: # of HMAs with Zero AML: | C74: 0
A75: * Only BLM acres displayed/Managed by USFS. | C75: 0
A76: ** Only BLM acres displayed/Managed by BLM. | C76: 0
A77: *** Only BLM acres displayed/Not managed. | C77: 0

Sheet National
A1: WILD HORSE AND BURRO HERD AREAS ADMINISTERED BY BLM
A2: FY 07
A4: SUMMARY OF BLM ACRES
A5: BLM ACRES | B5: =Arizona!E36+California!E63+Colorado!E32+Idaho!E34+Montana!E31+Nevada!#REF!+New_Mexico!E29+Oregon!E62+Utah!E57+Wyoming!E68 -> 
A6: NON-BLM ACRES | B6: =Arizona!F36+California!F63+Colorado!F32+Idaho!F34+Montana!F31+Nevada!#REF!+New_Mexico!F29+Oregon!F62+Utah!F57+Wyoming!F68 -> 
A7: TOTAL HERD MANAGEMENT AREA ACRES | B7: =SUM(B5:B6) -> 
A8: TOTAL HERD AREA ACRES | B8: ='HA Acreages'!D18 -> 
A11: SUMMARY OF MANAGEMENT STATUS
D12: Entire HAs Remaining
B13: HAs | C13: HMAs | D13: Undesignated
A14: ARIZONA | B14: 11 | C14: 7 | D14: 4
A15: CALIFORNIA | B15: 33 | C15: 22 | D15: 15
A16: COLORADO | B16: 8 | C16: 4 | D16: 3
A17: IDAHO | B17: 9 | C17: 6 | D17: 3
A18: MONTANA | B18: 7 | C18: 1 | D18: 6
A19: NEVADA | B19: 143 | C19: 102 | D19: 30
A20: NEW MEXICO | B20: 4 | C20: 2 | D20: 2
A21: OREGON | B21: 36 | C21: 18 | D21: 15
A22: UTAH | B22: 29 | C22: 21 | D22: 7
A23: WYOMING | B23: 38 | C23: 16 | D23: 21
A24: TOTAL | B24: =SUM(B14:B23) -> 318 | C24: =SUM(C14:C23) -> 199 | D24: =SUM(D14:D23) -> 106
A25: Numbers of remaining HAs and HMAs cannot be totaled due to the combining and splitting of HAs to form HMAs.
A27: SUMMARY OF ANIMAL POPULATIONS
C28: Estimated | E28: Estimated
B29: Horse AML | C29: Horse Pop | D29: Burro AML | E29: Burro Pop
A30: BLM WH&B TOTAL | B30: =Arizona!G36+California!H63+Colorado!G32+Idaho!G34+Montana!G31+Nevada!#REF!+New_Mexico!G29+Oregon!G62+Utah!H57+Wyoming!G68 ->  | C30: =Arizona!H36+California!I63+Colorado!H32+Idaho!H34+Montana!H31+Nevada!#REF!+New_Mexico!H29+Oregon!H62+Utah!I57+Wyoming!H68 ->  | D30: =Arizona!I36+California!J63+Colorado!I32+Idaho!I34+Montana!I31+Nevada!#REF!+New_Mexico!I29+Oregon!I62+Utah!J57+Wyoming!I68 ->  | E30: =Arizona!J36+California!K63+Colorado!J32+Idaho!J34+Montana!J31+Nevada!#REF!+New_Mexico!J29+Oregon!J62+Utah!K57+Wyoming!J68 -> 
A32: FY 2007 BLM WH&B POPULATION | C32: =C30+E30 -> 
A33: BLM WH&B APPROPRIATE MANAGEMENT LEVEL | C33: =B30+D30 -> 
A34: FY 2007 BLM EXCESS WH&B's | C34: =C32-C33 -> 
